bitfinex/quotes_SOLUSD_20250520
["timestamp","ask_amount","ask_price","bid_price","bid_amount"]
[1747708999891,18.64964886,171.33,171.16,16.5894]
[1747709000093,31.91751633,171.3,171.17,35.0]
[1747709000290,18.64964886,171.28,171.17,35.0]
[1747709000489,50.56716519,171.28,171.17,35.0]
[1747709000694,18.64964886,171.28,171.17,35.0]
[1747709001094,18.64964886,171.28,171.18,17.5]
[1747709001286,18.64964886,171.29,171.18,17.5]
[1747709001700,18.64964886,171.31,171.18,17.5]
[1747709001910,31.91751633,171.3,171.22,0.28432314]
[1747709002104,31.91751633,171.3,171.21,9.84228114]
[1747709002403,31.91751633,171.3,171.17,35.0]
[1747709002608,18.64964886,171.3,171.17,35.0]
[1747709002914,18.64964886,171.29,171.17,35.0]
[1747709003285,18.64964886,171.29,171.18,17.5]
[1747709003484,18.64964886,171.29,171.17,35.0]
[1747709003703,50.56716519,171.29,171.18,17.5]
[1747709004307,50.56716519,171.29,171.22,0.28432314]
[1747709004912,31.91751633,171.3,171.22,0.28432314]
[1747709005095,50.56716519,171.29,171.22,0.28432314]
[1747709005410,5.83743222,171.31,171.18,17.5]
[1747709005411,18.64964886,171.24,171.18,17.5]
[1747709005594,31.91751633,171.23,171.16,22.86]
[1747709005793,18.64964886,171.23,171.16,17.5]
[1747709006017,18.64964886,171.23,171.16,43.5]
[1747709006196,31.91751633,171.2,171.15,0.17082]
[1747709006513,31.91751633,171.19,171.15,0.17082]
[1747709006714,18.64964886,171.18,171.15,0.17082]
[1747709007103,18.64964886,171.22,171.16,0.28432314]
[1747709007411,18.64964886,171.25,171.16,0.28432314]
[1747709007612,18.64964886,171.26,171.16,0.28432314]
[1747709007914,18.64964886,171.28,171.15,35.0]
[1747709008213,5.83771161,171.3,171.15,35.0]
[1747709008214,5.83771161,171.3,171.15,45.0]
[1747709008385,14.59067899,171.35,171.17,35.0]
[1747709008386,5.83668942,171.33,171.17,35.0]
[1747709008585,5.83668942,171.33,171.19,35.0]
[1747709008799,5.83668942,171.33,171.2,17.5]
[1747709008800,50.56716519,171.32,171.2,17.5]
[1747709009017,18.64964886,171.32,171.2,17.5]
[1747709009713,56.40451185,171.32,171.2,17.5]
[1747709009913,56.40451185,171.32,171.24,0.28432314]
[1747709010119,24.48699552,171.32,171.24,0.28432314]
[1747709010291,20.42255868,171.38,171.24,0.28432314]
[1747709010618,18.64964886,171.34,171.24,0.28432314]
[1747709010786,18.64964886,171.35,171.24,0.28432314]
[1747709011414,5.83634878,171.34,171.24,0.28432314]
[1747709012216,50.56716519,171.33,171.24,0.28432314]
[1747709013323,5.83703011,171.32,171.24,0.28432314]
[1747709013821,18.64964886,171.31,171.19,0.28432314]
[1747709014003,31.91751633,171.3,171.24,17.5]
[1747709014625,31.91751633,171.3,171.25,0.28432314]
[1747709014826,5.83839327,171.28,171.21,26.0]
[1747709015015,5.83839327,171.28,171.22,17.5]
[1747709015527,18.64964886,171.31,171.23,0.28432314]
[1747709015695,50.56716519,171.31,171.23,0.28432314]
[1747709016305,5.83771161,171.3,171.23,0.28432314]
[1747709016505,37.75522794,171.3,171.23,0.28432314]
[1747709016922,50.56716519,171.29,171.23,0.28432314]
[1747709017126,50.56716519,171.29,171.22,43.5]
[1747709017320,50.56716519,171.29,171.22,26.0]
[1747709017522,18.64964886,171.29,171.22,43.5]
[1747709017718,18.64964886,171.29,171.23,0.14216157]
[1747709018031,18.64964886,171.29,171.23,0.28432314]
[1747709018534,5.83839327,171.28,171.23,0.28432314]
[1747709018824,18.64964886,171.27,171.22,26.0]
[1747709019031,18.64964886,171.25,171.19,17.5]
[1747709019403,50.56716519,171.24,171.16,17.5]
[1747709019725,10.0400261,171.23,171.16,17.78432314]
[1747709019933,31.91751633,171.24,171.16,17.5]
[1747709020629,5.8401164,171.23,171.17,0.28432314]
[1747709021128,31.91751633,171.24,171.18,69.73619248]
[1747709021330,31.91751633,171.22,171.18,69.73619248]
[1747709022430,5.84078032,171.21,171.18,69.73619248]
[1747709022813,31.91751633,171.25,171.18,69.73619248]
[1747709023006,31.91751633,171.24,171.18,69.73619248]
[1747709023311,31.91751633,171.22,171.18,69.73619248]
[1747709024012,50.56716519,171.23,171.18,69.73619248]
[1747709024527,5.8404392,171.22,171.18,69.73619248]
[1747709026641,37.75795553,171.22,171.18,69.73619248]
[1747709027133,5.8404392,171.22,171.18,69.73619248]
[1747709027335,20.4415372,171.22,171.18,69.73619248]
[1747709028448,26.0,171.23,171.18,69.73619248]
[1747709029344,50.56716519,171.24,171.18,69.73619248]
[1747709029522,18.64964886,171.24,171.18,69.73619248]
[1747709030537,5.84009811,171.23,171.18,69.73619248]
[1747709031346,5.84009811,171.23,171.19,8.74709715]
[1747709032421,5.84009811,171.23,171.19,0.28432314]
[1747709032735,18.64964886,171.21,171.2,34.98838861]
[1747709032914,50.56716519,171.21,171.2,34.98838861]
[1747709033743,40.26052238,171.21,171.2,34.98838861]
[1747709034629,46.1013027,171.21,171.2,34.98838861]
[1747709034925,5.84078032,171.21,171.2,34.98838861]
[1747709035120,5.84078032,171.21,171.17,8.97974943]
[1747709035832,5.84078032,171.21,171.16,26.28432314]
[1747709037137,20.4415372,171.22,171.16,26.28432314]
[1747709038037,20.4415372,171.22,171.16,0.28432314]
[1747709038938,46.51407406,171.22,171.16,0.28432314]
[1747709039337,14.601098,171.22,171.16,0.28432314]
[1747709039524,5.84009811,171.23,171.16,0.28432314]
[1747709041448,20.44034339,171.23,171.16,0.28432314]
[1747709041740,52.35331945,171.23,171.16,0.28432314]
[1747709042115,31.91297606,171.2,171.12,22.22]
[1747709042317,31.91297606,171.18,171.15,17.52]
[1747709042546,31.91297606,171.17,171.13,17.52]
[1747709042746,18.64964886,171.22,171.13,17.52]
[1747709042747,31.91297606,171.18,171.13,17.52]
[1747709043244,20.44631381,171.18,171.13,17.52]
[1747709043629,52.35928987,171.18,171.13,17.52]
[1747709044947,31.91297606,171.15,171.07,31.36274955]
[1747709045158,31.91297606,171.15,171.11,17.52]
[1747709045445,31.91297606,171.14,171.1,17.52]
[1747709045608,18.64964886,171.17,171.1,17.52]
[1747709045609,31.91297606,171.15,171.1,17.52]
[1747709045813,20.44631381,171.18,171.11,0.28432314]
[1747709046421,52.35928987,171.18,171.11,0.28432314]
[1747709046725,20.44631381,171.18,171.11,0.28432314]
[1747709047921,5.84180394,171.18,171.13,26.0]
[1747709048127,5.84180394,171.18,171.14,26.28432314]
[1747709049040,14.60267605,171.21,171.15,26.0]
[1747709049217,14.60267605,171.21,171.16,17.52]
[1747709050142,20.44345637,171.21,171.16,17.52]
[1747709050446,5.84078032,171.21,171.16,17.52]
[1747709052137,52.35465393,171.22,171.16,17.52]
[1747709053754,5.8404392,171.22,171.17,0.28432314]
[1747709053919,5.8404392,171.22,171.19,26.0]
[1747709054247,20.43865788,171.25,171.19,26.0]
[1747709054822,31.91297606,171.24,171.19,26.0]
[1747709055023,31.91297606,171.22,171.17,17.52]
[1747709055336,18.64964886,171.24,171.17,17.52]
[1747709055532,20.43865788,171.25,171.18,26.28432314]
[1747709056054,42.03679658,171.25,171.18,26.28432314]
[1747709056748,42.03679658,171.25,171.18,0.28432314]
[1747709057046,20.43865788,171.25,171.18,0.28432314]
[1747709057250,5.83941605,171.25,171.18,6.12585133]
[1747709057636,5.83941605,171.25,171.18,0.28432314]
[1747709058855,27.43755475,171.25,171.18,0.28432314]
[1747709059038,42.03609489,171.25,171.18,0.28432314]
[1747709059240,42.03609489,171.25,171.19,17.52]
[1747709060256,42.03609489,171.25,171.17,0.28432314]
[1747709060453,42.03609489,171.25,171.16,26.0]
[1747709060662,42.03609489,171.25,171.15,47.14424897]
[1747709060663,40.24778756,171.24,171.18,17.52]
[1747709061036,21.5981387,171.23,171.18,17.52]
[1747709061539,18.64964886,171.24,171.1,6.5247]
[1747709061540,18.64964886,171.2,171.1,6.5247]
[1747709061848,21.5981387,171.17,171.11,17.80432314]
[1747709062441,5.84248656,171.16,171.11,17.80432314]
[1747709062636,5.84248656,171.16,171.11,17.66216157]
[1747709063044,5.84248656,171.16,171.11,17.80432314]
[1747709063853,5.8421372,171.18,171.11,23.64840755]
[1747709064349,5.8414627,171.19,171.11,17.80432314]
[1747709064730,21.5981387,171.18,171.11,17.66216157]
[1747709065262,21.5981387,171.16,171.11,0.14216157]
[1747709065447,21.5981387,171.17,171.11,0.14216157]
[1747709065764,40.24778756,171.18,171.09,0.28432314]
[1747709065931,40.24778756,171.18,171.08,1.5316]
[1747709065932,21.5981387,171.14,171.08,1.5316]
[1747709066137,21.5981387,171.15,171.08,1.5316]
[1747709066338,21.5981387,171.15,171.09,0.28432314]
[1747709066943,20.44750831,171.17,171.09,0.28432314]
[1747709067143,21.5981387,171.15,171.09,0.28432314]
[1747709067661,20.44750831,171.17,171.09,0.28432314]
[1747709067834,29.20731351,171.19,171.09,0.28432314]
[1747709067835,14.6033693,171.2,171.12,0.28432314]
[1747709068034,20.44449079,171.2,171.12,0.28432314]
[1747709068260,20.44449079,171.2,171.12,17.80432314]
[1747709069059,5.8404392,171.22,171.12,23.64803247]
[1747709069439,27.4385779,171.22,171.12,23.64803247]
[1747709069761,5.8404392,171.22,171.12,23.64803247]
[1747709069938,5.8404392,171.22,171.14,0.28432314]
[1747709070667,5.8404392,171.22,171.14,81.18432314]
[1747709070858,14.5989332,171.25,171.14,81.18432314]
[1747709070859,5.83975706,171.24,171.14,81.18432314]
[1747709071039,5.83975706,171.24,171.14,53.953972]
[1747709071239,5.83941605,171.25,171.16,0.28432314]
[1747709071440,26.0,171.24,171.16,0.28432314]
[1747709072361,5.84009811,171.23,171.18,0.28432314]
[1747709074378,5.84009811,171.23,171.15,0.28432314]
[1747709074586,5.84009811,171.23,171.15,6.12705977]
[1747709076146,5.84009811,171.23,171.15,87.02705977]
[1747709077458,5.84009811,171.23,171.17,0.28432314]
[1747709079470,5.84009811,171.23,171.15,0.28432314]
[1747709079968,5.84009811,171.23,171.17,0.28432314]
[1747709084067,42.03848209,171.23,171.13,6.1704]
[1747709084286,42.03848209,171.23,171.14,17.52]
[1747709084452,42.03848209,171.23,171.15,0.28432314]
[1747709085079,42.03848209,171.23,171.15,17.80432314]
[1747709085370,42.03848209,171.23,171.15,0.28432314]
[1747709085583,42.03848209,171.23,171.15,17.80432314]
[1747709086072,21.5981387,171.21,171.15,0.28432314]
[1747709086246,21.5981387,171.21,171.08,8.118]
[1747709086247,21.5981387,171.2,171.08,8.118]
[1747709086452,47.5981387,171.19,171.09,17.52]
[1747709086969,21.5981387,171.14,171.04,6.5864]
[1747709087150,21.5981387,171.12,171.04,6.5864]
[1747709087361,21.5981387,171.12,171.04,24.1064]
[1747709087561,26.0,171.12,171.04,24.1064]
[1747709087759,44.64964886,171.15,170.99,8.24079383]
[1747709087760,26.0,171.04,170.99,8.24079383]
[1747709087970,47.5981387,171.04,170.99,8.24079383]
[1747709088156,47.5981387,171.0,170.99,8.24079383]
[1747709088480,26.0,171.0,170.99,8.24079383]
[1747709088690,20.46424602,171.03,170.99,8.24079383]
[1747709088856,20.46424602,171.03,170.93,18.64964886]
[1747709089178,20.46424602,171.03,170.95,26.0]
[1747709089179,5.84692743,171.03,170.95,26.0]
[1747709089378,5.84692743,171.03,170.96,26.0]
[1747709089566,18.64964886,171.08,170.98,0.28432314]
[1747709089567,5.84624378,171.05,170.98,0.28432314]
[1747709090154,5.84590202,171.06,170.98,6.13292556]
[1747709090358,1.6165,171.04,170.85,42.6396]
[1747709090580,26.0,170.98,170.85,60.1296]
[1747709090878,26.0,170.98,170.87,26.0]
[1747709091118,26.0,170.98,170.88,0.28432314]
[1747709091382,26.0,170.98,170.87,26.0]
[1747709091579,26.0,170.98,170.86,75.10964886]
[1747709091882,26.0,170.98,170.87,0.14216157]
[1747709091883,5.84897935,170.97,170.87,0.14216157]
[1747709092060,5.84897935,170.97,170.87,26.14216157]
[1747709092260,5.84897935,170.97,170.87,26.0]
[1747709092486,21.5981387,170.95,170.8,8.1222]
[1747709092668,26.0,170.91,170.81,17.52]
[1747709092873,21.5981387,170.9,170.81,17.52]
[1747709093569,47.5981387,170.91,170.81,17.52]
[1747709093891,5.85137507,170.9,170.81,17.52]
[1747709094063,5.85137507,170.9,170.84,26.0]
[1747709094380,5.85137507,170.9,170.85,0.28432314]
[1747709094587,5.85034809,170.93,170.85,0.28432314]
[1747709095890,21.5981387,170.86,170.68,6.0623]
[1747709096077,21.96,170.9,170.71,10.0]
[1747709096282,21.5981387,170.9,170.72,74.47]
[1747709096479,18.64964886,170.91,170.73,7.6189]
[1747709096782,78.97969926,170.93,170.77,0.14216157]
[1747709096783,42.07435702,170.93,170.77,0.14216157]
[1747709096989,42.07435702,170.93,170.81,26.0]
[1747709097183,20.47621832,170.93,170.81,26.0]
[1747709097357,21.5981387,170.9,170.81,26.0]
[1747709097556,21.5981387,170.9,170.82,0.28432314]
[1747709097789,5.85171747,170.89,170.82,0.28432314]
[1747709097966,27.44985617,170.89,170.82,0.28432314]
[1747709098169,27.44985617,170.89,170.79,47.96]
[1747709098487,21.5981387,170.86,170.79,26.0]
[1747709098796,18.64964886,170.88,170.79,26.0]
[1747709098973,18.64964886,170.88,170.73,7.6189]
[1747709099289,21.5981387,170.85,170.77,26.0]
[1747709099788,5.85343011,170.84,170.78,0.28432314]
[1747709099987,5.85343011,170.84,170.77,26.0]
[1747709100369,5.85240241,170.87,170.79,0.28432314]
[1747709100563,20.47382275,170.95,170.83,0.28432314]
[1747709100764,21.5981387,170.92,170.83,0.28432314]
[1747709101066,21.5981387,170.9,170.83,0.28432314]
[1747709101386,21.5981387,170.89,170.83,0.28432314]
[1747709101775,5.85205992,170.88,170.81,0.28432314]
[1747709102174,5.85069038,170.92,170.83,0.28432314]
[1747709102369,42.07555503,170.92,170.84,26.0]
[1747709102577,18.64964886,170.84,170.69,7.9659]
[1747709102786,18.64964886,170.84,170.63,6.3052]
[1747709102787,21.5981387,170.74,170.63,6.3052]
[1747709102987,18.64964886,170.77,170.63,6.3052]
[1747709103172,21.5981387,170.71,170.63,6.3052]
[1747709103764,18.64964886,170.76,170.63,6.3052]
[1747709103765,21.5981387,170.7,170.63,6.3052]
[1747709104065,18.64964886,170.71,170.58,17.54]
[1747709104265,18.64964886,170.72,170.58,17.54]
[1747709104567,21.5981387,170.68,170.61,26.0]
[1747709104769,21.5981387,170.67,170.58,35.02]
[1747709104967,21.5981387,170.68,170.61,26.0]
[1747709105294,18.64964886,170.72,170.57,6.3052]
[1747709105494,18.64964886,170.72,170.57,47.187723]
[1747709105671,2.91298523,170.73,170.6,61.02]
[1747709105992,5.85823081,170.7,170.65,0.28432314]
[1747709106492,37.96983299,170.7,170.65,0.28432314]
[1747709107289,37.96983299,170.7,170.45,5.86682311]
[1747709107290,18.64964886,170.65,170.45,5.86682311]
[1747709107490,32.11160218,170.6,170.45,10.62001293]
[1747709107782,5.86029067,170.64,170.48,5.8657907]
[1747709107986,5.86029067,170.64,170.53,0.28432314]
[1747709108187,37.97189285,170.64,170.53,0.14216157]
[1747709108390,5.86029067,170.64,170.53,0.14216157]
[1747709108597,5.86029067,170.64,170.53,0.28432314]
[1747709108889,20.51101734,170.64,170.52,17.54]
[1747709109074,52.62261952,170.64,170.55,26.0]
[1747709109276,20.51101734,170.64,170.52,17.56]
[1747709109592,20.51101734,170.64,170.55,26.28432314]
[1747709110289,5.86132114,170.61,170.52,17.56]
[1747709110676,14.64836129,170.67,170.56,26.14216157]
[1747709110868,14.64836129,170.67,170.57,0.14216157]
[1747709111188,5.85857402,170.69,170.57,0.14216157]
[1747709111189,5.85857402,170.69,170.61,0.14216157]
[1747709111395,5.85857402,170.69,170.65,0.28432314]
[1747709111575,20.49420306,170.78,170.65,0.28432314]
[1747709112282,32.11160218,170.72,170.65,0.28432314]
[1747709112481,37.96948982,170.71,170.65,0.28432314]
[1747709112793,5.85788764,170.71,170.63,5.86034212]
[1747709112991,5.85788764,170.71,170.61,23.42103324]
[1747709114296,37.96948982,170.71,170.61,5.86103324]
[1747709114591,32.11160218,170.69,170.61,5.86103324]
[1747709114793,32.11160218,170.7,170.64,26.0]
[1747709115267,20.49660341,170.76,170.65,0.28432314]
[1747709115788,32.11160218,170.73,170.65,0.28432314]
[1747709116496,5.85788764,170.71,170.65,0.28432314]
[1747709116991,32.11160218,170.74,170.65,6.14399665]
[1747709117292,5.85651537,170.75,170.65,0.28432314]
[1747709117597,32.11160218,170.72,170.68,0.28432314]
[1747709117766,32.11160218,170.73,170.68,0.28432314]
[1747709118508,5.85582947,170.77,170.68,17.84432314]
[1747709118797,32.11160218,170.82,170.72,0.28432314]
[1747709118980,32.11160218,170.83,170.76,0.28432314]
[1747709119170,32.11160218,170.84,170.76,0.28432314]
[1747709119587,32.11160218,170.83,170.76,0.28432314]
[1747709119907,5.85274493,170.86,170.8,0.28432314]
[1747709120774,5.85205992,170.88,170.8,0.28432314]
[1747709121281,5.85205992,170.88,170.76,17.56]
[1747709121599,5.85205992,170.88,170.8,0.28432314]
[1747709121794,58.69489418,170.94,170.84,0.28432314]
[1747709121795,5.85137507,170.9,170.84,0.28432314]
[1747709121971,32.11160218,170.87,170.82,0.28432314]
[1747709122171,32.11160218,170.86,170.8,0.28432314]
[1747709122390,32.11160218,170.84,170.79,26.0]
[1747709122596,20.47981275,170.9,170.8,0.28432314]
[1747709122994,32.11160218,170.88,170.8,0.28432314]
[1747709123199,32.11160218,170.87,170.8,26.28432314]
[1747709123495,32.11160218,170.86,170.8,26.28432314]
[1747709123689,49.73668811,170.9,170.8,26.28432314]
[1747709123886,32.11160218,170.88,170.8,26.28432314]
[1747709124078,32.11160218,170.87,170.8,26.28432314]
[1747709124485,32.11160218,170.87,170.8,0.28432314]
[1747709124892,43.88531304,170.9,170.79,26.28432314]
[1747709125106,32.11160218,170.88,170.81,0.28432314]
[1747709125283,32.11160218,170.87,170.81,0.28432314]
[1747709125676,21.6915651,170.87,170.81,0.28432314]
[1747709125885,5.85274493,170.86,170.81,0.28432314]
[1747709126088,20.48460727,170.86,170.75,139.33643362]
[1747709126381,20.48460727,170.86,170.79,0.28432314]
[1747709126574,5.85274493,170.86,170.79,0.28432314]
[1747709126774,355.36,170.98,170.79,0.28432314]
[1747709126775,5.85205992,170.88,170.79,0.28432314]
[1747709126979,5.85205992,170.88,170.82,0.28432314]
[1747709127807,20.47861446,170.91,170.82,0.28432314]
[1747709128104,20.47861446,170.91,170.86,0.28432314]
[1747709129495,5.85034809,170.93,170.86,26.28432314]
[1747709129701,5.85034809,170.93,170.87,26.28432314]
[1747709131284,20.46903327,170.99,170.87,0.28432314]
[1747709131779,42.16059837,170.99,170.87,0.28432314]
[1747709132102,20.46903327,170.99,170.87,6.13666148]
[1747709132303,42.16059837,170.99,170.91,26.28432314]
[1747709132697,21.6915651,170.96,170.91,26.0]
[1747709133002,21.6915651,170.95,170.91,26.0]
[1747709133508,5.85000585,170.94,170.91,26.0]
[1747709133808,27.54157095,170.94,170.91,26.0]
[1747709134011,21.6915651,170.92,170.88,26.0]
[1747709134884,21.6915651,170.93,170.88,26.0]
[1747709135200,20.47502047,170.94,170.88,26.0]
[1747709135404,21.6915651,170.93,170.88,26.0]
[1747709135609,42.16898143,170.92,170.88,26.0]
[1747709135917,20.47741633,170.92,170.8,88.8913]
[1747709136148,21.6915651,170.88,170.8,7.9913]
[1747709136278,21.6915651,170.87,170.8,0.28432314]
[1747709136480,21.6915651,170.87,170.79,17.54]
[1747709136683,49.73086823,170.92,170.82,26.0]
[1747709137111,21.6915651,170.89,170.81,26.0]
[1747709137326,49.73086823,170.92,170.82,26.0]
[1747709137494,21.6915651,170.9,170.83,26.0]
[1747709137823,21.6915651,170.88,170.82,0.28432314]
[1747709137998,21.6915651,170.87,170.8,35.02]
[1747709138204,21.6915651,170.86,170.8,35.02]
[1747709138399,21.6915651,170.85,170.8,26.0]
[1747709138714,21.6915651,170.82,170.75,6.487]
[1747709138919,18.64964886,170.9,170.75,6.487]
[1747709139223,21.6915651,170.82,170.78,26.0]
[1747709139600,49.73959855,170.89,170.78,26.0]
[1747709139803,21.6915651,170.84,170.78,26.0]
[1747709140010,21.6915651,170.85,170.76,0.14216157]
[1747709140215,21.6915651,170.84,170.76,0.28432314]
[1747709140514,21.6915651,170.84,170.78,26.0]
[1747709140713,49.73959855,170.89,170.79,26.28432314]
[1747709141433,42.17257626,170.89,170.79,26.28432314]
[1747709141601,21.6915651,170.88,170.82,0.28432314]
[1747709141807,42.17257626,170.89,170.82,0.28432314]
[1747709142124,21.6915651,170.88,170.82,0.28432314]
[1747709142320,21.6915651,170.84,170.75,6.487]
[1747709142628,21.6915651,170.83,170.78,26.0]
[1747709142823,21.6915651,170.79,170.68,17.54]
[1747709143120,21.6915651,170.77,170.68,17.54]
[1747709143339,21.6915651,170.82,170.68,17.54]
[1747709143516,21.6915651,170.77,170.68,17.54]
[1747709143700,20.49660341,170.76,170.69,0.28432314]
[1747709144109,20.49660341,170.76,170.7,26.0]
[1747709144521,5.8561724,170.76,170.7,26.0]
[1747709144837,18.64964886,170.87,170.74,0.28432314]
[1747709145135,21.6915651,170.83,170.74,0.28432314]
[1747709145333,78.40350935,170.88,170.74,0.28432314]
[1747709145635,5.85343011,170.84,170.76,26.28432314]
[1747709145929,5.85343011,170.84,170.76,43.84432314]
[1747709147228,46.68618743,170.86,170.76,43.84432314]
[1747709147603,5.85240241,170.87,170.76,84.72039279]
[1747709147823,5.85240241,170.87,170.8,26.0]
[1747709148019,20.48340843,170.87,170.81,0.28432314]
[1747709148420,5.85240241,170.87,170.81,0.28432314]
[1747709149416,5.85171747,170.89,170.81,0.28432314]
[1747709149729,40.74964886,170.96,170.81,0.28432314]
[1747709149730,5.85069038,170.92,170.85,0.28432314]
[1747709149926,5.85069038,170.92,170.88,26.0]
[1747709150519,5.85069038,170.92,170.89,0.28432314]
[1747709150720,32.05402704,170.95,170.89,0.28432314]
[1747709150721,5.84966364,170.95,170.89,0.28432314]
[1747709151225,32.05402704,170.92,170.88,26.0]
[1747709151420,5.85034809,170.93,170.88,26.0]
[1747709151729,52.53024536,170.93,170.88,26.0]
[1747709151916,32.05402704,170.92,170.88,26.0]
[1747709152232,32.05402704,170.91,170.86,26.28432314]
[1747709153317,32.05402704,170.91,170.86,26.0]
[1747709153514,5.85205992,170.88,170.84,26.14216157]
[1747709153712,20.48220973,170.88,170.84,26.14216157]
[1747709153909,20.48220973,170.88,170.81,17.54]
[1747709154121,52.53623677,170.88,170.8,35.02]
[1747709154319,52.53623677,170.88,170.8,52.56]
[1747709154519,52.53623677,170.88,170.83,26.0]
[1747709154520,20.48220973,170.88,170.83,26.0]
[1747709155115,52.53623677,170.88,170.83,26.0]
[1747709155311,32.05402704,170.87,170.83,26.0]
[1747709155518,20.48220973,170.88,170.79,22.1]
[1747709155519,14.63014981,170.88,170.79,39.64]
[1747709155821,32.05402704,170.86,170.8,26.0]
[1747709156036,14.63014981,170.88,170.81,0.28432314]
[1747709156432,46.68417685,170.88,170.81,0.28432314]
[1747709156818,46.68417685,170.88,170.78,35.02]
[1747709156819,32.05402704,170.86,170.79,0.28432314]
[1747709157023,46.68417685,170.88,170.81,26.0]
[1747709157223,46.68417685,170.88,170.82,0.28432314]
[1747709157642,32.05402704,170.89,170.82,26.28432314]
[1747709158035,32.05402704,170.88,170.82,26.28432314]
[1747709158332,32.05402704,170.88,170.82,0.28432314]
[1747709158530,32.05402704,170.88,170.81,26.0]
[1747709158735,18.64964886,170.78,170.55,10.0]
[1747709159041,32.05402704,170.78,170.58,32.1]
[1747709159214,4.2081,170.81,170.66,22.1]
[1747709159421,50.7036759,170.83,170.66,22.1]
[1747709159626,52.54463062,170.81,170.66,22.1]
[1747709159843,32.05402704,170.79,170.66,22.1]
[1747709160543,32.05402704,170.79,170.66,27.95933433]
[1747709160738,32.05402704,170.79,170.7,0.14216157]
[1747709161041,32.05402704,170.8,170.7,0.14216157]
[1747709161233,32.05402704,170.74,170.67,17.54]
[1747709161545,32.05402704,170.71,170.61,22.1]
[1747709161717,32.05402704,170.68,170.61,17.54]
[1747709161924,32.05402704,170.67,170.57,24.1463]
[1747709162134,49.79496191,170.7,170.6,26.0]
[1747709162441,49.79496191,170.7,170.57,24.1463]
[1747709162442,32.05402704,170.69,170.57,24.1463]
[1747709162636,32.05402704,170.68,170.57,24.1463]
[1747709162841,32.05402704,170.68,170.6,26.0]
[1747709163045,32.05402704,170.67,170.57,24.1463]
[1747709163219,32.05402704,170.67,170.56,26.8344486]
[1747709163220,32.05402704,170.65,170.56,22.1]
[1747709163423,32.05402704,170.62,170.56,22.1]
[1747709163726,5.86132114,170.61,170.54,17.56]
[1747709163932,32.05402704,170.6,170.54,17.56]
[1747709164131,32.05402704,170.59,170.54,17.56]
[1747709164317,32.05402704,170.58,170.54,17.56]
[1747709164735,20.51462399,170.61,170.54,17.56]
[1747709164736,20.51462399,170.61,170.55,0.28432314]
[1747709165054,20.51462399,170.61,170.57,26.0]
[1747709165721,20.51462399,170.61,170.55,0.28432314]
[1747709165919,52.56865103,170.61,170.57,26.0]
[1747709166323,32.05402704,170.6,170.51,22.1]
[1747709166531,32.05402704,170.59,170.51,39.66]
[1747709166731,20.51462399,170.61,170.54,26.0]
[1747709167049,14.65060292,170.65,170.55,0.28432314]
[1747709167721,14.64747778,170.68,170.59,0.28432314]
[1747709167938,20.50639505,170.68,170.59,17.84432314]
[1747709168143,32.05402704,170.66,170.58,26.0]
[1747709168342,32.05402704,170.66,170.57,17.84432314]
[1747709168644,20.50639505,170.68,170.57,17.84432314]
[1747709168844,52.56042209,170.68,170.57,17.84432314]
[1747709169033,32.05402704,170.67,170.57,17.84432314]
[1747709169437,32.05402704,170.66,170.57,17.84432314]
[1747709169643,32.05402704,170.67,170.57,17.84432314]
[1747709169848,20.50260675,170.71,170.57,24.2241]
[1747709170048,20.50260675,170.71,170.61,26.28432314]
[1747709170231,5.85788764,170.71,170.61,26.28432314]
[1747709170627,37.91191468,170.71,170.61,26.28432314]
[1747709170827,5.85788764,170.71,170.61,26.28432314]
[1747709171442,5.85685838,170.74,170.64,0.28432314]
[1747709171634,5.85685838,170.74,170.68,26.0]
[1747709171951,5.85685838,170.74,170.69,0.28432314]
[1747709172125,5.85582947,170.77,170.69,0.28432314]
[1747709172454,32.05402704,170.76,170.71,0.28432314]
[1747709172833,32.05402704,170.74,170.66,0.28432314]
[1747709173031,32.05402704,170.73,170.68,0.28432314]
[1747709173856,5.85754451,170.72,170.68,0.28432314]
[1747709175753,5.85754451,170.72,170.68,26.28432314]
[1747709175952,32.05402704,170.77,170.7,26.0]
[1747709176136,32.05402704,170.75,170.7,26.0]
[1747709177229,14.63916067,170.78,170.7,0.28432314]
[1747709177230,32.05402704,170.76,170.7,0.28432314]
[1747709177434,14.63916067,170.78,170.69,0.28432314]
[1747709177846,5.85514374,170.79,170.72,0.28432314]
[1747709178050,5.85514374,170.79,170.73,26.0]
[1747709178436,5.85514374,170.79,170.72,0.28432314]